Cogmind - Beta 13 @@@ ROGUE MODE // 2024.05.19 @ 23:10:22 Player: A Moose Result: Destroyed by S-10 Pest with Light Assault Rifle Performance ------------- Evolutions (0) 0 Regions Visited (2) 400 Robots Destroyed (28) 140 Value Destroyed (478) 478 Prototype IDs (2) 40 Alien Tech Used (0) 0 Bonus (0) 0 TOTAL SCORE: 1058 Bonus ------- None Cogmind --------- Core Integrity 0/250 Matter 229/300 Energy 100/100 System Corruption 1% Temperature Cool (0) Movement Rolling (95) Ox1 Location -10/Mines Parts ------- > --- POWER (1) -------- (None) > --- PROPULSION (2) --- Wheel Wheel > --- UTILITY (2) ------ Large Storage Unit Light Armor Plating > --- WEAPON (2) ------- Assault Rifle Rocket Launcher > --- INVENTORY (15) --- Light Ion Engine Light Ion Engine Compact Wheel Large Matter Pod (121) Propulsion Shielding Medium Laser Small Laser Light Assault Rifle Grenade Launcher Grenade Launcher Makeshift Spear Peak State ------------ > --- POWER ------------ Ion Engine > --- PROPULSION ------- Wheel Wheel > --- UTILITY ---------- Large Storage Unit Light Armor Plating > --- WEAPON ----------- Assault Rifle Rocket Launcher > --- INVENTORY -------- Light Ion Engine Light Ion Engine Compact Wheel Large Matter Pod Propulsion Shielding Medium Laser Small Laser Light Assault Rifle Grenade Launcher Grenade Launcher [Rating: 9] Favorites ----------- Power Ion Engine Engine Ion Engine Propulsion Light Treads Treads Light Treads Wheel Wheel Utility Large Storage Unit Storage Large Storage Unit Processor Signal Interpreter Protection Light Armor Plating Weapon Medium Laser Energy Gun Medium Laser Ballistic Gun Assault Rifle Launcher Rocket Launcher Build | -11 -10 -10 ------- Run | Yrd Mat Min Slots Evolved . | . . . Power . | . . . Propulsion . | . . . Utility . | . . . Weapon . | . . . Parts Attached 18 | 6 8 4 Power 1 | . 1 . Engine 1 | . 1 . Core . | . . . Reactor . | . . . Propulsion 4 | 2 1 1 Treads 2 | 2 . . Leg . | . . . Wheel 2 | . 1 1 Hover . | . . . Flight . | . . . Utility 4 | 1 2 1 Device . | . . . Storage 2 | 1 1 . Processor 1 | . 1 . Hackware . | . . . Protection 1 | . . 1 Artifact . | . . . Weapon 9 | 3 4 2 Energy Gun 5 | 3 2 . Energy Cannon . | . . . Ballistic Gun 1 | . 1 . Ballistic Cannon . | . . . Launcher 3 | . 1 2 Special Weapon . | . . . Impact Weapon . | . . . Slashing Weapon . | . . . Piercing Weapon . | . . . Special Melee Weapon . | . . . Unidentified Prototypes . | . . . Parts Lost 5 | . 4 1 Power 1 | . . 1 Propulsion 2 | . 2 . Utility . | . . . Weapon 2 | . 2 . Highest Loss Streak 1 | . 1 1 To Critical Strikes . | . . . Average Slot Usage (%) 90 | . 88 99 Engine 12 | . 11 14 Treads 17 | . 23 . Wheel 8 | . 2 28 Storage 14 | . 14 14 Processor 6 | . 7 . Protection 3 | . . 14 Energy Gun 19 | . 24 . Ballistic Gun 5 | . 2 14 Launcher 3 | . . 12 Naked Turns . | . . . Heaviest Build 34 | 9 29 34 Greatest Support 40 | 40 40 20 Greatest Overweight (x) 2 | 1 2 1 Average Overweight (x) . | . . 1 Largest Inventory Capacity 15 | 8 15 15 Average Capacity 11 | 7 10 15 Most Carried 12 | 7 11 12 Average Carried 8 | 4 8 10 Final Capacity 15 | 8 15 15 Final Carried 11 | 5 11 11 Class Distribution -------------------- 100% | Mutant Dominant Class ---------------- Mutant | -10/Materials Mutant | -10/Mines Resources | -11 -10 -10 ----------- Run | Yrd Mat Min Matter Collected 561 | 240 239 82 Remotely . | . . . Salvage Created 535 | . 454 81 Parts 35 | . 26 9 Haulers Intercepted 1 | . 1 . Recyclers Shooed . | . . . Parts Field Recycled . | . . . Retrieved Matter . | . . . Parts Self-Destructed . | . . . Prevented . | . . . Kills | -11 -10 -10 ------- Run | Yrd Mat Min Combat Hostiles Destroyed 20 | . 14 6 Guns 14 | . 12 2 AOE 6 | . 2 4 Classes Destroyed 6 | . 6 . Worker 3 | . 3 . Builder 2 | . 2 . Hauler 1 | . 1 . Watcher 2 | . 2 . Swarmer 13 | . 9 4 Grunt 7 | . 5 2 Best Kill Streak 5 | . 5 3 Combat Bots Only 3 | . 2 3 Max Kills in Single Turn 2 | . 2 2 Gunslinging 1 | . 1 . Exploded 2 | . 2 2 Melee . | . . . Uniques/NPCs Destroyed . | . . . Combat | -11 -10 -10 -------- Run | Yrd Mat Min Hostile Shots Fired 108 | . 89 19 Missed 26 | . 19 7 Damage Taken 989 | . 808 181 Core 259 | . 238 21 Absorbed by Shields . | . . . Core Remaining (%) 100 | 100 . . Volleys Fired 71 | . 65 6 Largest 2 | . 2 2 Hottest 100 | . 100 53 Shots Fired 132 | . 120 12 Gun 125 | . 119 6 Cannon . | . . . Launcher 7 | . 1 6 Special . | . . . Kinetic 25 | . 19 6 Thermal 89 | . 89 . Explosive 7 | . 1 6 Electromagnetic 11 | . 11 . Robot Hit Streak 7 | . 7 2 Robot Miss Streak 5 | . 5 1 Penetration Max . | . . . Secondary Targets 2 | . 2 . Max Gunslinging Chain 1 | . 1 . Shots Hit Robots 62 | . 59 3 Core Hits 34 | . 27 7 Critical Kills . | . . . Critical Parts Destroyed . | . . . Critical Strikes 4 | . 4 . Burn 4 | . 4 . Melee Attacks . | . . . Impact . | . . . Slashing . | . . . Piercing . | . . . Sneak Attacks . | . . . Combat Hostiles . | . . . Follow-up Attacks . | . . . Damage Inflicted 1638 | . 1259 379 Guns 892 | . 856 36 Cannons . | . . . Explosions 746 | . 403 343 Melee . | . . . Ramming . | . . . Kinetic 219 | . 183 36 Thermal 710 | . 701 9 Explosive 632 | . 298 334 Electromagnetic 77 | . 77 . Impact . | . . . Slashing . | . . . Piercing . | . . . Highest Corruption 1 | . 1 1 Average Corruption 1 | . 1 1 Corruption Purged . | . . . Corruption Blocked . | . . . Effects 4 | . 2 2 Message Errors 1 | . 1 . Heat Flow Errors 1 | . . 1 Energy Discharges 1 | . . 1 Data Loss (major) 1 | . 1 . Overload Shots . | . . . Overflow Damage 49 | . 8 41 Projectiles . | . . . Explosions 49 | . 8 41 Melee . | . . . Knockbacks . | . . . Impact . | . . . Kinetic . | . . . Secondary . | . . . Self-Inflicted Damage 263 | . 186 77 Shots 6 | . 4 2 Rammed . | . . . Targets Rammed . | . . . Kicked . | . . . Crushed . | . . . Highest Temperature 361 | . 361 124 Average Temperature 100 | . 101 93 Received Heat Transfer 126 | . 126 . Effects 1 | . 1 . Energy Bleed 1 | . 1 . Siege Activations . | . . . Robots Corrupted . | . . . Combat Hostiles . | . . . Parts Fried . | . . . Impact Corruptions . | . . . Robots Melted . | . . . Combat Hostiles . | . . . Parts Melted 8 | . 8 . Heat Transferred 2187 | . 2137 50 Parts Sabotaged . | . . . Parts Stolen . | . . . Parts Stripped . | . . . Power Chain Reactions 2 | . 2 . Alert | -11 -10 -10 ------- Run | Yrd Mat Min Peak Influence 336 | . 332 336 Initial 93 | . . 93 Average 162 | . 178 151 Maximum Alert Level 1 | . 1 1 Low Security (%) 65 | 100 57 81 Level 1 34 | . 42 18 Level 2 . | . . . Level 3 . | . . . Level 4 . | . . . Level 5 . | . . . High Security . | . . . Max Security . | . . . Squads Dispatched 5 | . 5 . Investigation 4 | . 4 . Extermination . | . . . Reinforcement 1 | . 1 . Assault . | . . . Garrison . | . . . Intercept . | . . . Searches Triggered . | . . . Construction Impeded . | . . . Haulers Reinforced . | . . . Active Scanning Responses . | . . . Cargo Convoy Interrupts . | . . . Stealth | -11 -10 -10 --------- Run | Yrd Mat Min Distress Signals 5 | . 5 . Communications Jammed . | . . . Distress Signals . | . . . Times Spotted 35 | . 29 6 Peak Tracking Total 4 | . 4 3 Tactical Retreats . | . . . Traps | -11 -10 -10 ------- Run | Yrd Mat Min Traps Triggered 1 | . 1 . Indirectly . | . . . Trap Hack Attempts . | . . . Triggered . | . . . Disarmed . | . . . Reprogrammed . | . . . Reused . | . . . Traps Extracted . | . . . Installed . | . . . Triggered . | . . . Machines | -11 -10 -10 ---------- Run | Yrd Mat Min Machines Disabled 6 | . 4 2 Max in Single Turn 1 | . 1 1 Machines Repaired . | . . . Machines Dismantled . | . . . Machines Sabotaged . | . . . Overloaded Fab Kills . | . . . Hacking | -11 -10 -10 --------- Run | Yrd Mat Min Machines Accessed 8 | . 8 . Terminals 7 | . 7 . Fabricators . | . . . Repair Stations 1 | . 1 . Recycling Units . | . . . Scanalyzers . | . . . Garrison Access . | . . . Total Hacks 32 | . 32 . Successful 13 | . 13 . Failed 18 | . 18 . Catastrophic 2 | . 2 . Database Lockouts 1 | . 1 . Manual 2 | . 2 . Terminals 27 | . 27 . Fabricators . | . . . Repair Stations 5 | . 5 . Recycling Units . | . . . Scanalyzers . | . . . Garrison Access . | . . . Terminal Hacks 12 | . 12 . Robot Analysis 2 | . 2 . Prototype ID Bank 1 | . 1 . Branch Access Points 1 | . 1 . Emergency Access Points 2 | . 2 . Alert Level 1 | . 1 . Locate Traps 1 | . 1 . Investigation Status 1 | . 1 . Reinforcement Status 1 | . 1 . Recall Investigation 1 | . 1 . Zone Layout 1 | . 1 . Fabricator Hacks . | . . . Repair Station Hacks 1 | . 1 . Scan Component 1 | . 1 . Recycling Unit Hacks . | . . . Scanalyzer . | . . . Garrison Access Hacks . | . . . Unauthorized Hacks . | . . . Terminals . | . . . Fabricators . | . . . Repair Stations . | . . . Recycling Units . | . . . Scanalyzers . | . . . Garrison Access . | . . . Data Cores Recovered . | . . . Used . | . . . Hacking Detections 8 | . 8 . Full Trace Events 4 | . 4 . Feedback Events 1 | . 1 . Corruption 1 | . 1 . Feedback Blocked . | . . . Robot Schematics Acquired . | . . . Robots Built . | . . . Authchips . | . . . Time . | . . . Total Robot Build Rating . | . . . Part Schematics Acquired . | . . . Parts Built . | . . . Authchips . | . . . Time . | . . . Total Part Build Rating . | . . . Parts Repaired . | . . . Time . | . . . Parts Recycled . | . . . Recycled Matter . | . . . Retrieved Matter . | . . . Retrieved Components . | . . . Parts Scanalyzed . | . . . Part Schematics Acquired . | . . . Parts Damaged . | . . . Bothacking | -11 -10 -10 ------------ Run | Yrd Mat Min Used RIF Installer . | . . . Robots Hacked . | . . . Non-combat . | . . . Combat . | . . . Robot Hacks Applied . | . . . Relay Couplers Released . | . . . Fabnet Peak Effective % . | . . . Robots Rewired . | . . . Allies Hacked . | . . . Hacks Repelled . | . . . Allies | -11 -10 -10 -------- Run | Yrd Mat Min Total Allies . | . . . Largest Group . | . . . Highest-Rated Group . | . . . Highest-Rated Ally . | . . . Total Orders . | . . . Ally Attacks . | . . . Total Damage . | . . . Kills . | . . . Allies Corrupted . | . . . Allies Melted . | . . . Intel | -11 -10 -10 ------- Run | Yrd Mat Min Robot Analysis Total 2 | . 2 . Derelict Logs Recovered 2 | . . 2 Drone Launches . | . . . Drone Recoveries . | . . . Exploration | -11 -10 -10 ------------- Run | Yrd Mat Min Turns Passed 1425 | 75 1037 313 Spaces Moved 871 | 43 546 282 Core 14 | 14 . . Treads 447 | 29 418 . Legs . | . . . Wheels 410 | . 128 282 Hover . | . . . Flight . | . . . Fastest Speed 50 | 50 110 95 Average Speed 130 | 139 148 95 Slowest Speed 160 | 160 160 95 Overloaded Moves . | . . . Propulsion Burnouts . | . . . Robots Hopped . | . . . Cave-ins Triggered . | . . . Exploration Rate (%) 55 | 6 84 76 Regions Visited 2 Branch Regions 1 Pre-discovered Areas . | . . . Known Exits Taken 1 | . 1 . Unknown Exits Taken 1 | 1 . . Scrap Searched 1 | . . 1 Spaces Dug . | . . . Terrain Destroyed 116 | . 53 63 Melee . | . . . Projectile . | . . . AOE 116 | . 53 63 Terrain Rammed . | . . . Walls Destroyed . | . . . Machines Disabled . | . . . Actions | -11 -10 -10 --------- Run | Yrd Mat Min Total 1025 | 58 653 314 Wait 40 | . 21 19 Move 869 | 42 545 282 Hop . | . . . Pick Up 24 | 10 12 2 Fast Attach . | . . . Attach 12 | 5 5 2 Detach 1 | . . 1 Swap 6 | 1 3 2 Drop 2 | . 2 . Fire 71 | . 65 6 Melee . | . . . Ram . | . . . Kick . | . . . Crush . | . . . Escape Stasis . | . . . Rewire . | . . . Trap . | . . . Miscellaneous . | . . . Route ------- -11/Scrapyard -10/Materials (discovered 4 exits: *Mat x3 / *Min) -10/Mines (discovered 2 exits: *Mat x2) History --------- Turn | Location | Event 35 | -11/Scrapyard | Discovered new exit (range 16) 76 | -11/Scrapyard | Entered Materials 81 | -10/Materials | Central database locked down 232 | -10/Materials | Core integrity fell below 50% 313 | -10/Materials | Build established: Mutant 339 | -10/Materials | Core integrity fell below 20% 393 | -10/Materials | Discovered new exit (range 12) 517 | -10/Materials | Discovered new exit (range 14) 549 | -10/Materials | Identified exit to Materials 842 | -10/Materials | Discovered exit to Materials (range 16) 857 | -10/Materials | Identified exit to Mines 1113 | -10/Materials | Entered Mines 1120 | -10/Mines | Received a Rocket Launcher from a helpful Derelict 1235 | -10/Mines | Learned Materials emergency access door positions 1236 | -10/Mines | Discovered exit to Materials (range 11) 1259 | -10/Mines | Learned Materials security intel 1395 | -10/Mines | A weapon hastily lodged in a ceiling crevice suddenly fell to the ground 1418 | -10/Mines | Discovered exit to Materials (range 6) 1426 | -10/Mines | Destroyed by S-10 Pest with Light Assault Rifle Last Messages --------------- Found Sml. Laser. Found 29 Matter. Found 15 Matter. Acquired 15 matter. S-10 Pest destroyed. Seismic Survey Station disabled. Destroyed Lgt. Ion Engine. Destroyed Flight Unit. S-10 Pest destroyed. Acquired 4 matter. The unstable cave ceiling collapses. A Mak. Spear has been hastily shoved under some rubble with a note attached: "Stab them where it hurts!" Acquired Mak. Spear. EXIT=FOUND: MATERIALS Ion Engine destroyed. Destroyed Ion Engine. Plasma Injector explodes. S-10 Pest destroyed. Map ----- +----------------------------------------------------+ | ????????????# ### #?????????# #????? | | ????????????# ## ##????????# #????? | | ???????????## # = ##???????? #????? | | ???????????# * #??????? ?????? | | ??????????## ### #????????????? | | ?????????## ##?## #????????????? | | ????????## #????# ##????????????? | | ???????## #?????####?????????????? | | ???????# / ##??????????????????????? | | ???????# ## ##???????????????????????? | | ??????# #?# ##????????????????????????? | | ??????# ??# #?????????????????????????? | | ??????## #??# #?????????????????????????? | | ???????###???## #?????????????????????#### | | ??????????????## ???????????????????## # | | ???????????????#### ??????????????????# | | ??????????????????## ##????????????????## | | ???????????????????? #???????????????### | | ?????????########???# ##?????????####### | | ?????????#;;;;;;;######??????????# # | | ?????????#; ???????????# ### # | | ????????## s ???????##### #?# | | ????????# % ???????# #?## | | ????????# * s ####???# #####??#### | | ????????# ##### #?????????## | | ????????# @ #??????????# | | ??????????# #######??????????## # | | ??????????# ##?????????????????#### | | ??????????######### ####?????????????????????? | | ??????????????????###?????????????????????????? | | ??????????????????????????????????????????????? | | | | | | | | | | | | | | | | | | | | | | | | | | | | | | | | | | | | | | | +----------------------------------------------------+ Best States ------------- Heat Dissipation 25 Energy Generation 10 Energy Capacity 250 Matter Stores 300 Matter Capacity 300 Sight Range 16 Terrain Scan Density 10 Armor Coverage 150 Evasion (%) 41 Recoil Reduction 2 Item Schematics ----------------- None Robot Schematics ------------------ None Fabricated ------------ Nothing Alien Tech Used ----------------- None Achievements -------------- None Challenges ------------ None Game ------ Seed ControlLinkedLeg Manual? 0 Play Time 00:14:21 Cumulative 110.0 hours Start 2024.05.19 @ 22:58:24 End 2024.05.19 @ 23:10:22 Sessions 1 Manual Loads 0 Difficulty Rogue Special Mode None Game No. 112 Rogue 103 Adventurer 9 Explorer 0 Win Type - Total 0 Types 0/0/0/0/0/0/0/0/0 Lore% 55 Gallery% 63 Achievement% 47 Wizard Run 0 Options --------- Layout 1 ASCII 0 Keyboard 0 Movement Numpad Keybinds 0 Fullscreen 1 Font 24/Smallcaps Map View 50x35 Zoom Use 0% Tactical HUD 0 Map Filters NONE Filters NONE Steam 1 RUN: dbccc6cf-78d2-4fb2-a91d-c84d4b7e7a28